bitfinex-derivatives/quotes_ETHF0:USTF0_20220108
["timestamp","ask_amount","ask_price","bid_price","bid_amount"]
[1641663674672,1.586675,3080.4,3079.9,2.00479]
[1641663674873,1.62322115,3080.1,3079.9,2.00479]
[1641663675072,0.264788,3080.1,3079.9,2.00479]
[1641663675473,0.6811,3080.4,3079.9,3.24282893]
[1641663675873,0.640787,3080.3,3079.9,2.268778]
[1641663676274,0.56442138,3080.4,3079.9,2.268778]
[1641663676673,2.00479,3080.3,3079.9,2.268778]
[1641663676876,2.91271583,3080.3,3079.9,2.268778]
[1641663677276,0.90792583,3080.3,3079.9,3.768778]
[1641663677475,0.08115,3081.4,3080.2,1.5]
[1641663677676,1.49997236,3082.4,3080.2,0.8464]
[1641663677874,1.62240739,3081.7,3080.2,1.82034399]
[1641663678075,1.62240739,3081.7,3080.3,0.07528]
[1641663678275,1.62240739,3081.7,3080.2,1.82034399]
[1641663678676,2.00479,3081.5,3080.7,2.00479]
[1641663678876,1.7160151,3081.4,3080.7,2.00479]
[1641663679078,1.7160151,3081.4,3080.8,0.904775]
[1641663679279,1.4492261,3081.4,3080.8,1.576875]
[1641663679479,1.4492261,3081.4,3081.1,1.5]
[1641663679679,2.00479,3081.8,3081.2,0.263988]
[1641663679880,2.00479,3081.8,3081.2,1.23762791]
[1641663680080,69.7788,3083.3,3081.3,0.08111]
[1641663680287,1.49997236,3083.0,3081.3,0.08111]
[1641663680483,0.0811,3082.9,3081.0,33.9373]
[1641663680687,2.00479,3082.2,3081.5,2.00479]
[1641663680882,0.002001,3082.1,3081.6,0.263988]
[1641663681282,2.00479,3082.2,3081.1,9.73365712]
[1641663681482,2.00479,3082.2,3081.2,0.08111]
[1641663681685,2.00479,3082.2,3081.1,0.08111]
[1641663681882,1.288454,3082.1,3080.9,0.08111]
[1641663682782,1.288454,3082.1,3081.2,2.00479]
[1641663683585,1.288454,3082.1,3081.6,0.08899264]
[1641663683787,2.00479,3082.2,3081.7,0.638787]
[1641663683985,1.62146298,3083.5,3082.1,0.08899264]
[1641663684187,1.62125531,3083.9,3082.3,0.08899264]
[1641663684385,1.62125531,3083.9,3082.4,0.08107]
[1641663684587,1.41100736,3083.9,3082.4,0.08107]
[1641663684787,1.41100736,3083.9,3082.9,2.00479]
[1641663684788,2.00279,3083.7,3082.9,2.00479]
[1641663684987,0.640787,3083.6,3082.9,2.00479]
[1641663685686,0.264788,3083.5,3082.9,2.00479]
[1641663685886,1.41100736,3083.0,3082.9,2.00479]
[1641663686087,2.06900736,3083.0,3082.9,2.00479]
[1641663686287,2.06900736,3083.0,3082.6,2.00479]
[1641663686789,2.66279,3083.0,3082.5,0.638787]
[1641663687088,14.024788,3082.9,3082.2,2.00479]
[1641663687287,1.41100736,3082.3,3081.3,0.0811]
[1641663687492,1.41100736,3081.7,3080.9,0.4843]
[1641663687685,2.20347316,3082.3,3081.1,4.0]
[1641663687887,2.20347316,3082.3,3081.8,0.97345301]
[1641663688087,2.46826116,3082.3,3081.1,2.14205485]
[1641663688288,2.46826116,3082.3,3081.1,0.97365722]
[1641663688693,3.88479144,3082.3,3081.1,0.97365722]
[1641663688891,3.88479144,3082.3,3081.9,2.00479]
[1641663689090,4.52557844,3082.3,3081.9,2.643577]
[1641663689292,4.52557844,3082.3,3081.9,2.00479]
[1641663689990,4.26079044,3082.3,3081.9,2.00479]
[1641663690192,3.62000344,3082.3,3081.9,2.00479]
[1641663690791,2.00479,3082.0,3081.1,2.97844722]
[1641663691191,0.8865,3082.0,3081.1,2.97844722]
[1641663691491,0.7921,3082.0,3081.1,2.00479]
[1641663691691,0.06370923,3081.8,3080.9,0.4843]
[1641663691892,0.06370923,3081.8,3080.8,2.00479]
[1641663692092,0.7921,3082.0,3080.8,2.00479]
[1641663692291,2.261759,3081.7,3080.8,2.00479]
[1641663692692,16.11808023,3081.9,3080.8,2.00479]
[1641663692892,2.00479,3081.5,3081.0,1.43629077]
[1641663693091,2.00479,3081.5,3081.1,0.638787]
[1641663693393,1.49519542,3081.4,3081.1,0.638787]
[1641663693591,2.13829542,3081.4,3080.8,2.00479]
[1641663693791,1.62303673,3080.9,3080.2,3.17352884]
[1641663693991,0.264788,3080.8,3080.2,2.00479]
[1641663694793,2.00479,3080.6,3080.2,2.00479]
[1641663694994,0.264788,3080.5,3080.2,2.00479]
[1641663695198,0.87571357,3080.4,3080.2,2.00479]
[1641663695600,0.264788,3080.3,3080.2,2.00479]
[1641663695800,0.264788,3080.3,3080.0,0.638787]
[1641663696000,0.264788,3080.3,3079.9,1.43629077]
[1641663696200,1.62331601,3080.2,3079.6,2.00479]
[1641663696403,0.264788,3080.2,3079.7,1.43629077]
[1641663696600,0.264788,3080.2,3079.6,2.00479]
[1641663696802,1.62337399,3080.1,3079.6,2.00479]
[1641663697002,1.88816199,3080.1,3079.6,2.00479]
[1641663697203,0.264788,3080.1,3079.6,2.00479]
[1641663697400,0.06370923,3079.9,3079.1,2.00479]
[1641663697601,1.62374829,3079.7,3079.1,2.00479]
[1641663697801,1.62374829,3079.7,3079.1,2.643577]
[1641663698006,0.264788,3079.6,3079.1,2.00479]
[1641663698401,1.31251777,3079.6,3079.1,2.00479]
[1641663698801,3.31730777,3079.6,3079.1,2.00479]
[1641663699201,3.31730777,3079.6,3079.5,1.43629077]
[1641663699404,3.31730777,3079.6,3079.2,1.43629077]
[1641663699605,3.05251977,3079.6,3079.2,1.43629077]
[1641663700004,3.05251977,3079.6,3079.1,2.643577]
[1641663700204,3.05251977,3079.6,3079.5,1.43629077]
[1641663700806,3.05251977,3079.6,3079.2,2.37319077]
[1641663701305,4.67613097,3079.6,3079.1,4.07986777]
[1641663701506,3.05251977,3079.6,3079.2,1.43629077]
[1641663701905,1.04772977,3079.6,3079.5,1.43629077]
[1641663702305,1.04772977,3079.6,3079.2,0.6506]
[1641663703010,1.04772977,3079.6,3079.2,2.08689077]
[1641663703407,1.04772977,3079.6,3079.5,1.43629077]
[1641663703605,1.04772977,3079.6,3079.1,2.643577]
[1641663703807,1.04772977,3079.6,3079.5,1.43629077]
[1641663704009,2.00479,3080.2,3079.5,1.43629077]
[1641663704010,2.00479,3080.2,3079.5,2.02219077]
[1641663704208,2.00479,3080.2,3079.5,0.5859]
[1641663704406,2.00479,3080.2,3079.6,1.51746077]
[1641663704610,2.00479,3080.2,3079.5,0.9741813]
[1641663704811,2.00479,3080.2,3079.1,2.643577]
[1641663704812,0.264788,3080.1,3079.1,2.643577]
[1641663705208,0.264788,3080.1,3079.7,1.43629077]
[1641663705612,0.264788,3080.1,3079.1,2.00479]
[1641663705811,0.264788,3080.1,3079.8,1.43629077]
[1641663706009,2.00479,3080.2,3079.9,0.638787]
[1641663706210,2.00479,3080.2,3079.8,0.617]
[1641663706409,2.269578,3080.2,3080.1,1.43629077]
[1641663706609,2.00479,3080.2,3080.1,1.43629077]
[1641663708011,2.00479,3080.7,3080.1,2.07507777]
[1641663708411,2.269578,3080.7,3080.1,2.07507777]
[1641663708613,2.269578,3080.7,3080.5,1.43629077]
[1641663708811,3.76390803,3080.6,3079.6,2.00479]
[1641663709011,3.76390803,3080.6,3078.8,0.80922308]
[1641663709012,2.00479,3080.2,3078.8,0.80922308]
[1641663709213,1.70430103,3080.6,3078.9,1.5]
[1641663709415,1.62312103,3080.6,3079.0,0.08117]
[1641663709818,1.62312103,3080.6,3079.1,1.5]
[1641663710416,1.62312103,3080.6,3079.0,1.5]
[1641663710619,1.54809488,3080.5,3079.1,0.08117]
[1641663710816,4.62687888,3080.5,3079.1,0.08117]
[1641663711013,4.62687888,3080.5,3080.1,10.0]
[1641663711014,10.0,3080.2,3080.1,10.0]
[1641663711215,10.0,3080.2,3080.1,15.0]
[1641663711413,17.248071,3080.2,3080.1,15.0]
[1641663711613,17.512859,3080.2,3080.1,15.0]
[1641663711913,19.13619873,3080.2,3080.1,15.0]
[1641663712113,17.512859,3080.2,3080.1,15.0]
[1641663714215,31.272859,3080.2,3079.2,0.80922308]
[1641663714415,17.594029,3080.2,3079.2,0.80922308]
[1641663715215,1.27717118,3080.1,3079.0,1.08655698]
[1641663715416,1.27717118,3080.1,3078.8,0.89040308]
[1641663716619,1.27717118,3080.1,3078.9,1.32749137]
[1641663717018,1.27717118,3080.1,3079.2,2.00479]
[1641663717624,17.524582,3080.0,3078.9,1.32749137]
[1641663717820,1.5,3079.5,3078.9,1.32749137]
[1641663718021,1.5,3079.3,3079.0,0.80922308]
[1641663718220,1.62412805,3079.1,3078.6,1.35288229]
[1641663718420,13.84118,3079.0,3077.6,31.76306206]
[1641663718621,13.84118,3079.0,3077.6,3.8785267]
[1641663719020,2.00479,3078.6,3077.9,2.00479]
[1641663719222,2.65419,3078.6,3077.9,2.00479]
[1641663719421,1.62442881,3078.1,3077.7,0.08121]
[1641663719623,0.264788,3078.0,3077.6,5.8833167]
[1641663720226,0.905575,3078.1,3077.6,5.8833167]
[1641663720525,1.62422829,3078.5,3077.6,2.48169]
[1641663720722,2.65419,3078.6,3077.6,2.48169]
[1641663720723,2.266277,3078.0,3077.6,2.48169]
[1641663720924,0.264788,3077.9,3077.2,2.00479]
[1641663721225,0.8618,3077.9,3077.2,2.00479]
[1641663721423,3.12501483,3077.3,3076.9,2.00479]
[1641663721627,3.1255035,3077.0,3076.5,3.73167634]
[1641663721824,1.5,3076.6,3076.1,2.19895204]
[1641663722024,13.84125,3076.9,3075.9,3.4258569]
[1641663722025,0.346038,3076.5,3075.9,3.4258569]
[1641663722225,13.76,3076.3,3075.9,3.4258569]
[1641663722425,13.76,3076.3,3075.7,4.24374259]
[1641663722426,3.12585235,3076.0,3075.7,4.24374259]
[1641663722624,1.5,3075.8,3075.2,2.69475204]
[1641663722826,1.5,3075.8,3074.8,4.57358521]
[1641663723025,4.00958,3074.9,3074.8,4.57358521]
[1641663723225,5.119968,3074.9,3074.8,4.57358521]
[1641663723426,0.002,3074.8,3074.3,5.57316134]
[1641663723625,1.5,3074.4,3073.9,6.52465571]
[1641663723829,1.62680718,3074.4,3073.9,7.91423071]
[1641663724028,1.666058,3074.3,3073.9,7.01065571]
[1641663724228,1.747378,3074.3,3074.0,0.264788]
[1641663724429,1.21201173,3074.6,3074.2,1.5]
[1641663724628,1.21201173,3074.6,3074.5,1.5]
[1641663724836,4.0,3076.6,3074.5,1.764788]
[1641663725033,13.76,3076.5,3076.2,2.00479]
[1641663725233,2.00479,3076.9,3076.2,0.264788]
[1641663725433,4.0,3076.7,3075.9,2.00479]
[1641663725630,0.264788,3076.6,3074.0,0.08125]
[1641663725837,0.264788,3076.6,3075.1,1.5]
[1641663726232,0.264788,3076.6,3075.2,0.6725]
[1641663726430,1.12519669,3076.5,3075.2,0.6725]
[1641663726833,2.75047035,3076.5,3075.6,1.5]
[1641663727033,2.75047035,3076.5,3076.4,2.00479]
[1641663727034,1.12519669,3076.5,3076.4,2.00479]
[1641663727433,1.20645669,3076.5,3076.4,2.00479]
[1641663727633,3.49835969,3076.5,3076.4,2.00479]
[1641663727834,3.49835969,3076.5,3076.4,0.6187]
[1641663728036,3.41709969,3076.5,3076.4,0.6187]
[1641663728937,3.41709969,3076.5,3076.2,4.00958]
[1641663729336,3.41709969,3076.5,3076.2,4.648367]
[1641663729535,4.35489969,3076.5,3076.2,4.00958]
[1641663729735,4.35489969,3076.5,3074.9,1.62501483]
[1641663729736,18.19614969,3076.5,3074.9,1.62519706]
[1641663729937,1.62569641,3075.7,3074.7,0.08125]
[1641663730135,1.62569641,3075.7,3074.6,32.0645]
[1641663730136,1.62580213,3075.5,3074.6,32.0645]
[1641663730338,1.70708213,3075.5,3074.0,32.98958]
[1641663730538,0.08128,3075.5,3074.6,1.5]
[1641663730736,13.76,3075.6,3074.1,1.62561712]
[1641663730737,0.08128,3075.6,3075.0,1.5]
[1641663730935,0.08128,3075.6,3074.4,1.62545594]
[1641663730936,0.08128,3076.3,3075.5,3.50479]
[1641663731137,0.08126,3077.1,3075.8,1.5]
[1641663731437,0.08126,3077.1,3075.6,34.4853]
[1641663731738,1.5,3077.3,3075.6,34.56655]
[1641663731937,0.75375,3077.4,3075.6,34.56655]
[1641663731938,0.6725,3077.4,3075.6,0.08125]
[1641663732236,2.276282,3077.0,3075.6,0.98615]
[1641663732536,0.6725,3077.4,3075.6,0.98615]
[1641663732739,2.29767,3076.9,3075.8,1.62457132]
[1641663732936,0.6725,3077.4,3075.8,1.62457132]
[1641663732937,0.5967,3077.0,3076.8,4.00958]
[1641663733838,0.08125,3078.1,3076.8,4.00958]
[1641663734036,1.5,3078.6,3076.9,0.08122]
[1641663734237,1.5,3078.6,3076.9,2.36480034]
[1641663734737,15.9325,3078.7,3076.9,0.74082]
[1641663734938,1.70526419,3078.6,3078.0,2.00479]
[1641663735143,14.400787,3078.5,3078.0,2.00479]
[1641663735339,3.12449742,3078.1,3077.7,2.00479]
[1641663735539,3.1248432,3077.8,3075.6,0.08121]
[1641663735742,0.08125,3077.7,3075.6,0.08121]
[1641663735941,1.58125,3077.7,3075.5,0.08125]
[1641663736145,0.6725,3077.6,3075.5,0.08125]
[1641663736342,0.6725,3077.6,3075.5,13.84125]
[1641663736548,0.6725,3077.6,3075.6,5.20063]
[1641663736549,1.35932539,3077.5,3075.6,5.20063]
[1641663736750,1.35932539,3077.5,3076.2,1.6243734]
[1641663736947,3.36411539,3077.5,3076.8,2.00479]
[1641663737548,1.35932539,3077.5,3076.8,2.95279]
[1641663737749,1.58124,3078.7,3076.9,0.08124]
[1641663738048,1.5,3078.7,3076.9,0.08124]
[1641663738253,0.6725,3078.8,3076.9,0.08124]
[1641663738448,1.5,3077.6,3076.8,2.00479]
[1641663738650,0.905575,3077.5,3076.8,2.00479]
[1641663738848,0.08124,3077.4,3076.5,2.00479]
[1641663739048,2.00479,3077.1,3076.5,2.00479]
[1641663739248,0.264788,3077.0,3076.5,2.00479]
[1641663739449,1.5,3076.6,3076.0,2.00479]
[1641663739648,1.5,3076.1,3076.0,2.00479]
[1641663739848,3.12546387,3076.1,3074.9,0.6725]
[1641663740048,1.5,3075.8,3074.9,0.6725]
[1641663740249,0.802,3075.8,3074.4,0.08126]
[1641663740449,0.08128,3075.7,3074.1,1.08941097]
[1641663740649,0.08128,3075.7,3073.9,2.52500917]
[1641663740650,1.62564355,3075.5,3073.9,1.16321415]
[1641663740854,1.62564355,3075.5,3074.0,0.6725]
[1641663741050,1.62564355,3075.5,3073.9,1.16321415]
[1641663741051,1.5,3075.2,3074.9,2.00479]
[1641663741250,1.5,3075.0,3074.5,2.00479]
[1641663741449,0.7595,3075.0,3074.5,2.00479]
[1641663741650,0.264788,3074.9,3074.5,2.00479]
[1641663741849,0.346078,3074.9,3074.5,2.00479]
[1641663742249,0.346078,3074.9,3073.9,0.59593415]
[1641663742451,1.6262278,3074.7,3073.9,0.59593415]
[1641663742649,0.08129,3074.9,3074.0,0.905575]
[1641663742851,0.7595,3075.0,3074.0,0.905575]
[1641663743051,2.00479,3074.5,3074.0,0.905575]
[1641663743353,2.00479,3074.5,3074.0,0.264788]
[1641663743550,1.11418831,3074.4,3074.0,0.264788]
[1641663743951,1.89122475,3074.3,3073.9,0.59593415]
[1641663744152,3.12669074,3074.0,3072.7,0.08132]
[1641663744552,13.76,3073.9,3072.2,0.08133]
[1641663744752,0.08135,3073.9,3071.9,1.5]
[1641663744951,0.08135,3074.2,3071.6,34.18745]
[1641663745153,2.00479,3073.0,3072.3,2.00479]
[1641663745451,1.5,3072.8,3072.0,2.00479]
[1641663745650,2.22696773,3072.9,3071.6,0.08135]
[1641663745857,1.5,3072.6,3071.5,0.81526181]
[1641663746053,1.62790887,3071.6,3071.5,0.81526181]
[1641663746253,0.8022,3071.6,3071.5,0.81526181]
[1641663746655,0.8022,3071.6,3071.2,0.08136]
[1641663746856,0.264788,3071.5,3070.6,0.81526181]
[1641663747053,2.00479,3071.4,3070.7,2.00479]
[1641663747254,0.08139,3071.5,3070.8,0.905575]
[1641663747455,1.18230843,3071.4,3070.8,0.905575]
[1641663747654,0.08139,3072.1,3070.8,0.905575]
[1641663748154,0.08139,3072.1,3070.8,1.578075]
[1641663748555,0.08139,3072.3,3071.0,1.5]
[1641663748755,4.0,3073.5,3070.8,0.640787]
[1641663748756,0.08137,3073.4,3070.8,0.640787]
[1641663748956,0.7743,3072.6,3070.8,0.640787]
[1641663749157,2.00479,3072.4,3071.4,2.00479]
[1641663749356,0.08137,3072.6,3071.4,2.00479]
[1641663749558,0.08137,3072.6,3071.5,1.5]
[1641663749755,0.08136,3072.9,3071.7,1.62687864]
[1641663749955,0.08136,3073.4,3071.8,1.5]
[1641663750156,0.08135,3073.9,3071.4,2.00479]
[1641663750355,0.8874,3073.4,3071.2,0.08135]
[1641663750756,0.08136,3073.3,3070.7,0.7891539]
[1641663750958,0.96877,3073.4,3070.8,0.08137]
[1641663751156,0.8874,3073.4,3073.0,2.00479]
[1641663751456,0.640787,3073.3,3070.6,0.08134]
[1641663752258,0.640787,3073.3,3070.7,5.208418]
[1641663752458,0.640787,3073.3,3071.8,1.62682835]
[1641663752658,1.86339965,3073.3,3071.6,0.08135]
[1641663752859,1.86339965,3073.3,3071.5,0.8017]
[1641663753063,1.86339965,3073.3,3072.7,2.00479]
[1641663753064,1.22261265,3073.3,3072.7,2.00479]
[1641663753261,2.00479,3073.8,3072.8,0.640787]
[1641663753464,2.00479,3073.8,3073.1,1.62613525]
[1641663754461,0.08133,3074.6,3072.8,0.640787]
[1641663754661,1.52952889,3074.7,3073.6,1.62588936]
[1641663754862,1.52952889,3074.7,3073.6,2.49568936]
[1641663755063,2.00479,3074.5,3073.9,1.62570698]
[1641663755262,2.00479,3074.5,3074.0,0.640787]
[1641663755465,1.62584971,3075.4,3074.0,0.640787]
[1641663755764,0.08129,3075.9,3074.6,1.62537668]
[1641663755967,34.7619733,3076.0,3074.6,2.49917668]
[1641663756164,33.2619733,3076.0,3074.9,1.62517857]
[1641663756365,33.2619733,3076.0,3075.2,1.62500955]
[1641663756665,0.08128,3076.7,3075.9,1.62460035]
[1641663756865,0.640787,3076.6,3075.9,2.26690035]
[1641663757065,2.00479,3076.5,3075.9,2.26690035]
[1641663757265,2.00479,3076.5,3076.0,0.640787]
[1641663757465,2.269578,3076.5,3076.0,0.640787]
[1641663757666,2.00479,3076.5,3076.0,0.640787]
[1641663758266,0.08125,3077.4,3076.0,0.640787]
[1641663758468,0.08125,3077.9,3076.0,0.640787]
[1641663758668,1.11739801,3077.7,3077.2,1.62398034]
[1641663758867,0.81920285,3078.5,3077.6,1.62363757]
[1641663759066,32.1305966,3078.6,3078.4,2.00479]
[1641663759266,2.00479,3079.1,3078.5,0.640787]
[1641663759467,0.905575,3079.0,3078.4,2.87539]
[1641663759670,1.5,3078.6,3078.4,0.8706]
[1641663759865,0.264788,3078.5,3078.4,0.8706]
[1641663760267,0.264788,3078.5,3076.8,1.62418344]
[1641663760466,0.08121,3078.4,3076.8,1.62418344]
[1641663760767,0.264788,3078.5,3077.7,1.62372456]
[1641663760969,1.5,3079.0,3077.7,1.62372456]
[1641663761166,2.00479,3079.1,3077.7,1.62372456]
[1641663761167,2.00479,3078.7,3078.0,2.00479]
[1641663761368,2.00479,3078.7,3078.1,0.640787]
[1641663761567,1.5,3079.0,3078.1,0.640787]
[1641663761868,1.70501893,3079.6,3078.1,0.640787]
[1641663761869,1.5,3079.4,3078.4,1.62336345]
[1641663762668,1.5,3080.2,3078.8,1.62315528]
[1641663762970,1.5,3080.2,3078.8,0.635]
[1641663763168,2.00479,3080.1,3079.4,2.00479]
[1641663763369,2.00479,3080.1,3079.5,0.640787]
[1641663763571,2.00479,3080.4,3079.7,1.62268382]
[1641663763770,0.08117,3081.6,3080.0,1.62248373]
[1641663763968,1.67832392,3088.8,3080.8,1.62209685]
[1641663763969,1.5,3081.5,3080.8,1.62209685]
[1641663764168,1.5,3081.5,3080.8,2.37109685]
[1641663764370,0.264788,3081.4,3080.8,2.37109685]
[1641663764570,1.5,3082.1,3080.8,2.37109685]
[1641663764768,28.73766374,3082.3,3080.8,2.37109685]
[1641663764969,28.73766374,3082.3,3080.8,0.749]
[1641663765170,1.5,3080.9,3080.8,0.749]
[1641663765372,1.764788,3080.9,3080.8,0.749]
[1641663765772,2.405575,3080.9,3080.8,0.749]
[1641663766572,0.640787,3080.9,3080.8,0.749]
[1641663766773,2.00479,3081.4,3080.8,0.749]
[1641663766973,2.00479,3081.8,3080.8,2.37105739]
[1641663767173,2.00479,3081.8,3081.0,2.00479]
[1641663767574,2.00479,3082.1,3081.4,0.60662171]
[1641663767773,2.00479,3082.1,3081.2,0.08111]
[1641663767974,2.00479,3082.1,3081.1,0.08111]
[1641663768274,0.08111,3083.5,3081.1,1.06562102]
[1641663768572,4.441,3083.6,3082.1,1.62130525]
[1641663768775,4.441,3083.6,3082.2,0.08108]
[1641663768974,4.441,3083.6,3082.4,1.6211528]
[1641663769174,2.00479,3083.5,3082.7,2.00479]
[1641663769376,0.905575,3083.4,3082.8,0.640787]
[1641663769577,1.75487572,3083.4,3082.8,0.640787]
[1641663769979,1.49008772,3083.4,3082.8,0.640787]
[1641663770276,5.0,3083.4,3082.9,1.62088478]
[1641663770879,5.0,3083.4,3082.8,0.721857]
[1641663771079,1.5,3084.6,3083.3,3.6254226]
[1641663771284,1.5,3084.6,3083.8,1.62044089]
[1641663771478,1.5,3084.6,3083.9,0.640787]
[1641663772076,0.905575,3084.5,3083.6,0.08104]
[1641663772276,1.5,3083.7,3082.9,0.08104]
[1641663772477,1.5,3083.5,3082.8,1.0102565]
[1641663772676,0.08107,3084.7,3082.8,1.0102565]
[1641663772677,5.0,3084.5,3082.8,1.0102565]
[1641663772877,1.5,3084.1,3082.9,0.08107]
[1641663773177,1.5,3083.2,3082.9,0.08107]
[1641663773376,1.5,3083.0,3082.8,1.0913265]
[1641663773576,1.5,3083.0,3082.8,1.0102565]
[1641663773781,1.5,3083.0,3082.7,4.00958]
[1641663774178,1.07046389,3083.1,3082.7,4.00958]
[1641663774377,0.1648,3083.1,3082.7,4.00958]
[1641663774579,2.16959,3083.7,3082.8,0.08108]
[1641663774781,2.00479,3083.7,3082.8,0.08108]
[1641663774981,0.1648,3083.1,3082.8,0.08108]
[1641663775282,0.1648,3083.1,3082.7,4.00958]
[1641663775481,0.1648,3082.8,3082.7,2.00479]
[1641663775690,1.49116875,3082.8,3081.8,0.08108]
[1641663775883,0.1648,3081.9,3081.3,0.0811]
[1641663776085,0.1648,3081.7,3080.9,0.08111]
[1641663776285,0.1648,3081.7,3081.3,0.640787]
[1641663776483,0.1648,3081.7,3080.5,0.08112]
[1641663776684,1.13870849,3081.6,3080.5,0.08112]
[1641663776884,1.30350849,3081.6,3080.5,0.08112]
[1641663777084,6.30350849,3081.6,3081.2,2.00479]
[1641663777286,0.1648,3082.5,3081.2,2.78079]
[1641663777584,0.1648,3082.3,3081.6,1.38252281]
[1641663777787,0.1648,3082.6,3082.2,1.33987215]
[1641663777986,1.5,3083.7,3082.3,0.0811]
[1641663778185,1.5,3084.1,3082.3,0.0811]
[1641663778385,32.90964312,3084.3,3082.2,1.33987215]
[1641663778584,1.5,3084.8,3082.8,1.41460833]
[1641663778788,1.58107,3085.4,3082.8,1.41460833]
[1641663778992,1.58107,3085.4,3082.9,0.08105]
[1641663779188,7.00479,3084.1,3083.4,2.00479]
[1641663779389,7.00479,3084.1,3083.5,0.640787]
[1641663779588,5.0,3084.1,3083.5,1.330987]
[1641663779988,1.5,3085.2,3083.5,1.330987]
[1641663780187,5.08107,3085.4,3083.5,0.6902]
[1641663780188,1.5,3084.8,3083.5,0.6902]
[1641663780390,0.08104,3084.7,3083.5,0.6902]
[1641663780789,5.0,3084.1,3083.1,2.00479]
[1641663781291,2.00479,3083.8,3083.1,2.00479]
[1641663781495,0.264788,3083.7,3082.1,1.03927649]
[1641663781691,0.08107,3084.5,3082.4,4.0]
[1641663781892,1.58107,3085.6,3084.2,1.62021772]
[1641663782089,1.58107,3085.6,3082.2,0.08103]
[1641663782090,1.5,3085.4,3082.2,0.08103]
[1641663782289,1.5,3085.2,3082.2,0.08103]
[1641663782490,1.5,3085.1,3082.5,4.0]
[1641663782688,0.08107,3085.8,3082.6,0.08105]
[1641663782889,1.5,3085.3,3082.6,13.84105]
[1641663783091,1.62057744,3085.3,3083.5,1.62057744]
[1641663783289,2.00479,3084.9,3084.0,1.5]
[1641663783491,0.08104,3086.3,3084.0,0.08104]
[1641663783689,1.61996051,3086.4,3084.7,1.61996051]
[1641663783891,1.61996575,3086.4,3084.8,1.61989228]
[1641663784489,6.61996575,3086.4,3084.8,1.61989228]
[1641663784890,1.5,3086.2,3084.8,1.61989228]
[1641663785093,2.00479,3085.1,3084.4,2.00479]
[1641663785298,0.905575,3085.0,3084.4,2.00479]
[1641663785491,0.905575,3085.0,3084.4,2.645577]
[1641663785691,1.08113894,3084.9,3084.4,2.645577]
[1641663785891,0.264788,3084.8,3083.9,2.00479]
[1641663786092,1.5,3084.4,3082.8,0.08104]
[1641663786293,1.5,3084.4,3082.4,0.08107]
[1641663786496,0.6725,3084.2,3082.1,1.5]
[1641663786693,0.6725,3084.2,3082.4,1.5]
[1641663786894,5.0,3084.4,3082.4,1.5]
[1641663787093,7.00479,3084.2,3083.5,2.00479]
[1641663787295,7.00479,3084.2,3083.6,0.264788]
[1641663787494,5.0,3084.4,3083.7,0.640787]
[1641663787694,5.0,3084.4,3083.8,0.08105]
[1641663787893,2.00479,3085.1,3084.3,1.62011273]
[1641663788096,1.70116273,3086.1,3084.4,0.97261217]
[1641663788294,1.5,3086.0,3084.5,0.08103]
[1641663788495,1.58103,3086.0,3084.3,2.44771273]
[1641663788695,1.62011273,3086.1,3084.3,2.44771273]
[1641663789096,1.62011273,3086.1,3084.6,2.00479]
[1641663789296,2.00479,3085.5,3084.6,2.00479]
[1641663789697,1.10959542,3085.4,3084.6,2.00479]
[1641663789996,1.10959542,3085.4,3084.7,0.986605]
[1641663790199,1.10959542,3085.4,3084.8,15.26]
[1641663790397,0.08103,3087.3,3085.1,0.9724139]
[1641663790597,0.081,3087.4,3085.2,13.76]
[1641663790797,5.414,3087.5,3085.3,0.081]
[1641663791002,1.61949877,3087.3,3085.6,1.61949877]
[1641663791200,2.00479,3086.5,3085.7,2.00479]
[1641663791398,2.00479,3086.5,3085.8,0.264788]
[1641663791801,0.86739455,3086.4,3085.9,0.640787]
[1641663792000,0.86739455,3086.4,3086.0,0.264788]
[1641663792909,0.86739455,3086.4,3085.7,2.00479]
[1641663793105,0.86739455,3086.4,3085.7,0.264788]
[1641663793106,2.00479,3086.1,3085.7,0.264788]
[1641663793804,2.00479,3086.1,3085.8,0.640787]
[1641663794005,2.00479,3086.1,3085.9,0.264788]
[1641663794208,2.269578,3086.1,3085.1,2.00479]
[1641663794407,0.081,3086.0,3085.1,2.00479]
[1641663794606,2.00479,3086.1,3085.1,2.00479]
[1641663794807,0.84915551,3086.0,3085.1,2.00479]
[1641663795206,0.84915551,3086.0,3085.5,2.00479]
[1641663795408,2.00479,3086.1,3085.6,0.264788]
[1641663795808,2.645577,3086.1,3085.6,0.264788]
[1641663796008,2.910365,3086.1,3085.5,2.00479]
[1641663796407,2.910365,3086.1,3085.6,0.640787]
[1641663796609,2.00479,3086.1,3085.6,1.474987]
[1641663797008,2.00479,3086.1,3085.7,0.264788]
[1641663797607,2.269578,3086.1,3085.7,0.264788]
[1641663797808,0.92007733,3086.0,3085.7,0.264788]
[1641663799610,0.92007733,3086.0,3085.7,1.23700475]
[1641663799907,0.92007733,3086.0,3085.7,0.264788]
[1641663800308,0.92007733,3086.0,3085.9,1.61927848]
[1641663800510,0.92007733,3086.0,3085.9,1.88406648]
[1641663800711,7.733e-05,3086.0,3085.9,1.88406648]
[1641663800910,7.733e-05,3086.0,3085.9,0.264788]
[1641663801311,7.733e-05,3086.0,3085.6,0.8342]
[1641663801710,0.26486533,3086.0,3085.6,0.8342]
[1641663802112,0.88500846,3085.9,3085.6,0.8342]
[1641663802812,0.264788,3085.8,3084.6,0.081]
[1641663803011,0.264788,3085.8,3084.4,0.7543]
[1641663803211,2.00479,3084.6,3084.4,0.7543]
[1641663803413,2.00479,3084.9,3084.5,0.264788]
[1641663803614,32.8888,3086.1,3084.5,0.264788]
[1641663803814,1.62006548,3086.2,3084.5,1.88485348]